bitfinex-derivatives/quotes_ETHF0:USTF0_20250209
["timestamp","ask_amount","ask_price","bid_price","bid_amount"]
[1739137033070,3.2078,2606.7,2606.2,4.42203747]
[1739137033682,3.21355418,2606.7,2606.4,4.14445393]
[1739137034172,0.00575418,2606.7,2606.4,7.35225393]
[1739137034371,0.00575418,2606.7,2606.5,1.1085]
[1739137037274,0.00575418,2606.7,2606.5,7.1085]
[1739137037479,4.2601,2607.6,2606.5,7.1085]
[1739137037679,4.2601,2607.6,2606.9,4.14445393]
[1739137038680,0.00575418,2607.5,2607.0,0.00575418]
[1739137039780,0.767,2607.2,2607.0,0.00575418]
[1739137039973,0.767,2607.2,2606.3,4.14445393]
[1739137040173,3.2078,2606.6,2606.3,4.14445393]
[1739137040577,0.05226301,2606.5,2606.3,4.14445393]
[1739137041071,0.76729,2606.2,2605.4,4.14445393]
[1739137041271,4.32200948,2606.4,2605.4,4.14445393]
[1739137041272,3.2078,2605.9,2605.4,4.14445393]
[1739137041772,5.19282983,2606.1,2605.1,1.0419]
[1739137041773,3.2078,2605.6,2605.1,1.0419]
[1739137041973,0.05226301,2605.7,2605.1,4.14445393]
[1739137041974,3.26006301,2605.7,2605.1,4.14445393]
[1739137042479,3.26006301,2605.7,2604.8,3.2078]
[1739137042480,3.2078,2605.4,2604.8,4.14445393]
[1739137042677,3.97544,2605.0,2604.2,4.14445393]
[1739137042884,0.76795,2604.0,2603.3,3.2078]
[1739137043179,3.2078,2603.0,2602.4,5.50611508]
[1739137043383,2.172,2603.9,2602.4,5.50611508]
[1739137043384,3.2078,2602.5,2602.4,5.50611508]
[1739137043680,3.2078,2602.5,2602.3,0.0008]
[1739137043870,3.2078,2602.5,2602.2,6.85845492]
[1739137044180,3.2078,2602.2,2602.0,3.87965612]
[1739137044370,3.2078,2602.2,2601.6,9.60073614]
[1739137044571,3.2078,2601.7,2601.5,10.66274997]
[1739137044779,3.2078,2601.7,2600.9,29.6160679]
[1739137044780,3.2078,2601.7,2601.4,4.4576306]
[1739137045082,3.2078,2602.0,2601.5,3.2078]
[1739137045277,3.2078,2602.5,2602.1,14.54485492]
[1739137045479,3.2078,2602.7,2602.6,14.49259191]
[1739137045781,3.2078,2602.7,2602.1,3.2078]
[1739137046080,20.088,2604.4,2601.1,7.45015531]
[1739137046081,6.9636306,2604.3,2602.6,14.49259191]
[1739137046285,3.2078,2603.8,2603.3,14.49259191]
[1739137046484,7.29894484,2604.3,2603.7,3.2078]
[1739137046690,20.102,2606.2,2602.6,4.4576306]
[1739137046691,4.09114484,2603.7,2603.2,0.00576568]
[1739137046983,4.09114484,2603.7,2601.5,0.76866]
[1739137046984,3.2078,2603.3,2601.1,3.2078]
[1739137047173,20.10776568,2603.8,2602.2,13.99259191]
[1739137047174,3.2078,2602.6,2602.2,13.99259191]
[1739137047484,4.4576306,2602.9,2602.1,13.99259191]
[1739137047687,3.2078,2604.0,2602.9,13.99259191]
[1739137047873,4.4576306,2603.9,2603.1,3.2078]
[1739137048176,3.2078,2603.3,2602.5,3.2078]
[1739137048382,4.4576306,2603.8,2601.7,3.2078]
[1739137048383,4.4576306,2602.9,2601.7,3.2078]
[1739137048574,7.6654306,2603.6,2602.4,3.2078]
[1739137048771,4.29817454,2602.8,2602.4,3.2078]
[1739137048970,0.00576568,2603.3,2602.7,3.2078]
[1739137049178,4.4576306,2605.1,2603.8,13.99259191]
[1739137049381,4.4576306,2605.1,2604.1,3.2078]
[1739137049382,2.66,2605.0,2604.1,3.2078]
[1739137049576,4.28409372,2604.5,2604.4,0.0425334]
[1739137049771,6.94409372,2605.0,2604.4,0.0425334]
[1739137049978,4.28409372,2604.9,2604.4,3.2503334]
[1739137050175,7.15683189,2604.8,2604.6,0.0850668]
[1739137050378,7.15683189,2604.8,2604.5,3.2078]
[1739137050678,4.07459203,2604.7,2604.4,0.00576568]
[1739137050879,7.15683189,2604.8,2604.7,13.99259191]
[1739137051183,0.00576568,2604.9,2604.6,3.2078]
[1739137051184,2.87099584,2605.3,2605.2,13.99259191]
[1739137051382,2.87099584,2605.3,2605.2,17.20039191]
[1739137052082,10.01956465,2605.6,2605.2,24.40402251]
[1739137052283,5.72703957,2605.7,2605.5,16.39893663]
[1739137052587,5.72703957,2605.7,2605.5,3.2078]
[1739137052775,5.72703957,2605.7,2605.6,13.3075383]
[1739137053577,5.72703957,2605.7,2605.6,6.11640167]
[1739137053784,10.01956465,2606.8,2605.6,10.57403227]
[1739137053977,10.01956465,2606.8,2606.7,10.66613138]
[1739137054178,2.87140209,2607.0,2606.7,10.66613138]
[1739137054487,4.43362179,2606.8,2606.2,3.2078]
[1739137054782,2.87140209,2607.0,2606.5,0.03880167]
[1739137054979,0.00575429,2606.8,2606.5,0.03880167]
[1739137055280,4.43937608,2606.8,2606.5,0.03880167]
[1739137055484,0.00575429,2606.8,2606.5,0.03880167]
[1739137055680,0.00575429,2606.8,2606.3,3.2078]
[1739137055681,4.11950677,2606.7,2606.6,0.03880167]
[1739137055985,10.10630677,2606.7,2605.7,3.2078]
[1739137056184,0.00575429,2606.8,2606.6,7.45833138]
[1739137056487,0.28260001,2607.6,2607.1,0.27982616]
[1739137056783,5.5373306,2608.8,2607.4,3.48762616]
[1739137056978,4.4576306,2608.4,2607.3,0.27982616]
[1739137057179,1.0797,2608.8,2607.4,3.48762616]
[1739137057180,5.5373306,2608.8,2607.4,3.48762616]
[1739137057687,5.5373306,2608.8,2607.4,3.56522616]
[1739137057987,2.01647802,2607.5,2607.4,3.2854]
[1739137058289,0.2086,2607.6,2607.4,3.2078]
[1739137058490,0.00575429,2607.7,2607.5,7.2596306]
[1739137058686,10.01956465,2608.1,2607.5,7.2596306]
[1739137058986,10.01956465,2608.1,2608.0,3.2078]
[1739137059386,5.20006465,2608.1,2608.0,9.2078]
[1739137059585,5.20006465,2608.1,2608.0,3.2078]
[1739137059786,0.3067,2608.2,2608.0,3.2078]
[1739137061084,1.2652,2608.2,2608.0,3.2078]
[1739137061286,1.2652,2608.2,2608.0,9.2078]
[1739137061595,4.4576306,2610.4,2608.1,8.13732728]
[1739137061798,4.4576306,2610.4,2609.4,2.9011]
[1739137062096,1.0601,2610.5,2609.4,2.9011]
[1739137062286,1.0601,2610.5,2609.8,3.2078]
[1739137062483,1.0601,2610.5,2610.1,3.2078]
[1739137062681,4.17713909,2610.4,2609.4,3.2078]
[1739137062886,4.59889338,2610.4,2609.9,0.00575429]
[1739137063090,3.2078,2610.1,2608.9,3.2078]
[1739137063399,3.2078,2609.8,2609.2,3.2078]
[1739137063592,3.2078,2609.8,2608.5,4.4576306]
[1739137063593,3.2078,2609.8,2608.9,3.2078]
[1739137063899,4.36905848,2609.7,2608.5,3.2078]
[1739137064195,3.2078,2608.8,2608.3,20.088]
[1739137064392,7.6654306,2609.2,2608.1,3.2078]
[1739137064689,2.239,2609.1,2608.8,0.00575429]
[1739137065086,0.00575429,2608.9,2608.8,0.00575429]
[1739137065291,0.00575429,2608.9,2608.8,3.21355429]
[1739137068694,3.2078,2610.3,2608.8,29.29555429]
[1739137068900,3.2078,2610.3,2609.6,3.2078]
[1739137069298,2.2547,2610.4,2609.6,3.2078]
[1739137070096,0.00575429,2610.3,2609.6,3.2078]
[1739137071002,0.00575429,2610.3,2609.2,2.754]
[1739137071003,0.00575429,2610.3,2609.9,3.2078]
[1739137071198,0.00575429,2610.3,2610.0,3.2078]
[1739137071803,0.00575429,2610.3,2609.7,3.2078]
[1739137072000,0.00575429,2610.3,2609.4,3.2078]
[1739137072305,0.00575429,2610.3,2609.2,2.754]
[1739137072306,0.00575429,2610.3,2609.7,3.2078]
[1739137072602,1.53805429,2610.3,2609.7,3.2078]
[1739137073003,4.01166464,2610.2,2609.7,3.2078]
[1739137073205,4.01166464,2610.2,2609.0,4.4576306]
[1739137073206,3.2078,2609.8,2609.2,3.2078]
[1739137073400,1.1313,2610.1,2609.2,3.2078]
[1739137073600,1.1313,2610.1,2608.9,2.728]
[1739137073601,1.0487,2610.0,2608.9,5.9358]
[1739137073805,5.10557711,2610.0,2608.9,5.9358]
[1739137074002,3.2078,2609.9,2608.9,5.9358]
[1739137074205,3.2078,2609.6,2608.9,3.2078]
[1739137074704,3.2078,2609.2,2608.8,20.08775429]
[1739137074906,3.2078,2609.2,2608.8,0.00575429]
[1739137075107,3.92300854,2609.1,2608.8,0.00575429]
[1739137075302,3.2078,2608.9,2608.8,0.00575429]
[1739137075905,3.2078,2609.5,2608.8,0.00575429]
[1739137076106,3.2078,2609.8,2608.8,0.00575429]
[1739137076306,3.2078,2609.2,2608.8,0.00575429]
[1739137076504,3.2078,2609.0,2608.8,0.00575429]
[1739137077104,3.2078,2609.1,2608.8,0.00575429]
[1739137078104,4.4576306,2609.6,2608.8,0.00575429]
[1739137078105,3.2078,2609.6,2608.9,3.2078]
[1739137079703,4.27841051,2609.5,2608.9,3.2078]
[1739137080304,3.2078,2609.3,2608.8,0.00575429]
[1739137080703,7.27209705,2609.2,2608.8,0.00575429]
[1739137080906,3.2078,2609.2,2608.8,0.00575429]
[1739137081206,3.2078,2608.9,2608.8,0.00575429]
[1739137082306,3.2078,2608.9,2608.0,3.2078]
[1739137082511,3.2078,2608.6,2608.0,3.2078]
[1739137083002,7.42768051,2608.5,2607.8,3.2078]
[1739137083204,3.2078,2608.5,2607.8,3.2078]
[1739137083606,3.2078,2608.5,2607.6,20.076]
[1739137083607,0.00575429,2608.4,2607.9,0.00575429]
[1739137083812,3.2078,2608.2,2607.9,0.00575429]
[1739137084002,0.76672,2608.1,2606.9,3.2078]
[1739137084209,3.2078,2607.6,2606.6,3.2078]
[1739137084509,3.2078,2607.3,2606.6,3.2078]
[1739137084707,3.2078,2607.3,2606.3,23.2848]
[1739137084912,3.2078,2607.4,2606.3,25.9428]
[1739137085210,6.24307596,2607.8,2606.3,25.9428]
[1739137085211,7.07994007,2607.3,2606.5,0.00575429]
[1739137085406,0.00575429,2607.1,2606.5,0.00575429]
[1739137086108,3.2078,2607.0,2606.5,0.00575429]
[1739137086409,3.2078,2607.0,2605.6,3.2078]
[1739137086410,3.2078,2606.6,2605.6,3.2078]
[1739137086601,1.0972,2606.5,2605.3,3.2078]
[1739137086807,5.43332624,2606.5,2605.3,3.2078]
[1739137087007,6.54892624,2606.5,2605.3,3.2078]
[1739137087503,9.75672624,2606.5,2605.9,3.2078]
[1739137087806,2.2128,2606.5,2605.9,3.2078]
[1739137088014,2.5197,2606.5,2605.9,3.2078]
[1739137088499,0.3069,2606.5,2606.2,3.2078]
[1739137089908,4.28662369,2606.4,2605.8,3.2078]
[1739137090408,3.2078,2606.3,2605.6,0.00575429]
[1739137090609,3.2078,2605.9,2605.6,0.00575429]
[1739137090806,3.2078,2605.7,2605.6,0.00575429]
[1739137091210,13.25783029,2605.7,2604.6,4.3033]
[1739137091506,7.25783029,2605.7,2605.0,3.2078]
[1739137091708,7.25783029,2605.7,2604.7,3.2078]
[1739137091908,3.2078,2605.2,2604.3,3.2078]
[1739137092608,0.00575429,2605.0,2604.5,0.00575429]
[1739137093115,4.26399338,2604.9,2604.5,0.00575429]
[1739137094111,4.26399338,2604.9,2604.7,0.04254687]
[1739137094412,7.47179338,2604.9,2604.7,0.04254687]
[1739137094607,13.47179338,2604.9,2604.5,0.00575429]
[1739137094813,7.47179338,2604.9,2604.5,0.00575429]
[1739137095210,0.00575429,2605.0,2604.5,0.00575429]
[1739137095618,4.30738783,2604.9,2604.5,0.00575429]
[1739137096509,7.51518783,2604.9,2604.5,0.00575429]
[1739137096817,3.2078,2604.6,2604.5,0.00575429]
[1739137097115,3.2078,2604.6,2603.9,23.2928]
[1739137097312,3.2078,2604.2,2603.9,20.085]
[1739137097514,3.2078,2604.2,2603.6,3.2078]
[1739137099221,3.2078,2603.9,2603.4,0.01411]
[1739137099422,4.35494226,2604.1,2603.4,0.01411]
[1739137099623,0.41000922,2603.8,2603.4,0.01411]
[1739137100125,1.5362,2603.8,2603.4,0.01411]
[1739137100519,4.12901197,2603.7,2603.4,0.01411]
[1739137101326,7.33681197,2603.7,2603.4,0.01411]
[1739137101626,1.11,2603.6,2603.4,0.01411]
[1739137102027,4.11709428,2603.5,2603.4,0.01411]
[1739137103526,4.11709428,2603.5,2602.7,23.3048]
[1739137103728,3.2078,2603.3,2602.7,23.3048]
[1739137104019,3.21355429,2603.3,2602.7,23.3048]
[1739137104323,3.2078,2602.9,2602.0,3.2078]
[1739137104529,4.4576306,2602.8,2602.0,3.2078]
[1739137104723,1.1025,2602.7,2602.0,3.2078]
[1739137104927,4.3103,2602.7,2602.0,3.2078]
[1739137105228,4.41481982,2602.6,2602.0,3.2078]
[1739137105425,1.1025,2602.7,2602.0,3.2078]
[1739137105621,3.2078,2602.1,2601.3,0.02012927]
[1739137106043,3.2078,2602.1,2601.5,3.2078]
[1739137106044,4.44289571,2602.0,2601.5,3.2078]
[1739137106232,4.44289571,2602.0,2601.3,0.02012927]
[1739137106233,0.00576546,2602.0,2601.9,3.2078]
[1739137106524,0.41916546,2602.0,2601.9,3.2078]
[1739137107819,0.39176546,2602.0,2601.9,9.2078]
[1739137108019,3.2078,2602.9,2601.9,9.2078]
[1739137108020,3.2078,2603.2,2601.9,9.2078]
[1739137108221,3.2078,2603.1,2602.2,2.9004]
[1739137108425,3.2078,2602.7,2602.2,2.9004]
[1739137108731,4.27540921,2602.6,2602.2,2.9004]
[1739137109320,7.48320921,2602.6,2602.2,2.9004]
[1739137109623,3.2078,2602.3,2601.6,20.116]
[1739137109824,3.2078,2602.4,2601.6,20.116]
[1739137110022,4.25349147,2602.2,2601.6,20.116]
[1739137110332,4.25349147,2602.3,2601.6,20.116]
[1739137110631,3.2078,2602.4,2601.6,20.116]
[1739137111024,4.33269687,2602.3,2601.6,20.116]
[1739137111424,6.17719687,2602.3,2601.2,3.2078]
[1739137111633,3.2078,2601.8,2601.2,3.2078]
[1739137111832,3.2078,2602.1,2601.2,3.2078]
[1739137112025,3.2078,2601.8,2601.2,3.2078]
[1739137112332,3.2078,2601.8,2600.9,2.541]
[1739137112333,3.2078,2601.8,2600.9,3.2078]
[1739137112630,3.2078,2601.5,2600.8,3.2078]
[1739137112837,3.2078,2601.5,2600.4,20.12]
[1739137112838,4.06252479,2601.7,2601.1,3.2078]
[1739137113029,4.46077663,2601.9,2601.1,3.2078]
[1739137113224,0.00576546,2601.7,2601.1,3.2078]
[1739137113431,0.00576546,2601.7,2601.4,3.2078]
[1739137114024,0.00576546,2601.7,2601.1,3.2078]
[1739137114938,0.00576546,2601.7,2601.4,3.2078]
[1739137115331,0.14714906,2601.6,2601.4,3.2078]
[1739137115831,0.00576546,2601.7,2601.4,3.2078]
[1739137116031,0.10444575,2601.5,2601.4,3.2078]
[1739137116227,0.10444575,2601.5,2601.1,3.2078]
[1739137116925,0.10444575,2601.3,2601.1,3.2078]
[1739137118135,0.10444575,2601.2,2601.1,3.2078]
[1739137119732,1.64214575,2601.2,2600.9,3.2078]
[1739137119928,0.10444575,2601.1,2600.9,3.2078]
[1739137121041,0.09488239,2601.0,2600.9,3.2078]
[1739137122133,0.00576546,2601.7,2600.9,9.2078]
[1739137122334,0.00576546,2601.7,2601.3,3.2078]
[1739137122540,0.00576546,2601.7,2601.0,4.5174]
[1739137122733,4.18796014,2601.6,2601.3,3.2078]
[1739137122938,0.00576546,2601.7,2601.3,3.2078]
[1739137123540,0.00576546,2601.7,2601.0,1.3096]
[1739137124244,0.00576546,2601.7,2601.2,3.2078]
[1739137125047,1.54316546,2601.7,2601.2,3.2078]
[1739137125743,1.54316546,2601.7,2601.5,3.2078]
[1739137126151,0.00576546,2601.7,2601.5,10.1474306]
[1739137126341,0.3074,2602.3,2601.5,16.1474306]
[1739137126550,4.5663,2603.0,2602.2,3.2078]
[1739137127148,1.5368,2602.7,2602.2,3.2078]
[1739137127549,1.54256546,2602.7,2602.2,3.2078]
[1739137127745,0.6146,2602.6,2602.4,0.04261152]
[1739137128344,0.6146,2602.6,2602.1,0.00576546]
[1739137128345,4.15864559,2602.5,2602.1,0.00576546]
[1739137128546,4.15864559,2602.5,2601.4,3.2078]
[1739137128547,3.2078,2602.2,2601.4,3.2078]
[1739137128748,3.2078,2601.9,2601.1,2.469]
[1739137129449,4.7451,2601.9,2601.2,3.2078]
[1739137129648,1.5373,2601.9,2601.2,3.2078]
[1739137129849,1.5373,2601.9,2601.5,3.2078]
[1739137130159,1.5373,2601.9,2601.4,3.2078]
[1739137131055,1.5373,2601.9,2601.1,3.2078]
[1739137131456,4.41623605,2601.8,2601.1,3.2078]
[1739137131651,1.8447,2601.9,2601.4,3.2078]
[1739137131856,1.8447,2601.9,2601.5,3.2078]
[1739137132854,1.8447,2601.9,2601.8,3.2078]
[1739137133154,0.3074,2601.9,2601.8,3.2078]
[1739137133658,0.3074,2601.9,2601.4,5.6598]
[1739137133959,0.3074,2601.9,2601.4,3.2078]
[1739137134160,0.3074,2601.9,2601.6,0.05223607]
[1739137134459,1.8447,2601.9,2601.6,0.05223607]
[1739137135060,1.8447,2601.9,2601.7,3.2078]
[1739137135260,1.8447,2601.9,2601.8,0.06192182]
[1739137135559,0.3074,2601.9,2601.8,0.06192182]
[1739137137759,0.76859,2601.8,2600.6,3.2078]
[1739137137955,3.2078,2601.3,2600.3,3.2078]
[1739137138455,3.2078,2600.4,2599.6,3.2078]
[1739137139255,3.2078,2600.0,2599.3,3.2078]
[1739137139454,3.2078,2599.7,2599.3,3.2078]
[1739137140351,3.2078,2599.4,2598.4,11.7493866]
[1739137140557,3.2078,2599.0,2598.4,11.7493866]
[1739137140758,7.38201702,2599.3,2598.4,14.9571866]
[1739137140961,3.2078,2599.6,2598.8,0.04257351]
[1739137141852,3.2078,2599.6,2598.6,2.477]
[1739137142054,0.00576546,2599.8,2599.2,0.04257351]
[1739137142659,0.00576546,2599.8,2599.3,3.2078]
[1739137142856,7.19655629,2600.1,2599.6,3.977]
[1739137143163,7.09800478,2600.1,2599.9,3.97693]
[1739137143462,8.62924545,2600.5,2599.9,3.97693]
[1739137143463,8.62924545,2600.5,2599.9,3.2078]
[1739137143861,11.83704545,2600.5,2599.8,0.04257351]
[1739137144058,11.83704545,2600.5,2600.1,0.04257351]
[1739137144259,3.2078,2600.2,2600.1,0.04257351]
[1739137145762,0.00576546,2600.5,2600.1,0.04257351]
[1739137145763,0.00576546,2600.5,2600.1,9.28562351]
[1739137145959,0.00576546,2600.5,2600.4,8.9002]
[1739137146162,0.00576546,2600.5,2600.4,2.9002]
[1739137146367,0.00576546,2600.5,2600.4,8.9002]
[1739137146660,8.62924545,2601.3,2600.4,8.9002]
[1739137146661,8.62924545,2601.3,2600.4,10.2631]
[1739137146861,3.2078,2601.4,2600.4,4.2631]
[1739137147068,3.2078,2601.4,2600.9,0.04257351]
[1739137147267,3.5153,2601.4,2600.9,2.51357351]
[1739137147464,3.5153,2601.4,2600.9,0.04257351]
[1739137147768,3.2078,2601.0,2599.9,0.00576546]
[1739137147965,3.2078,2600.5,2599.9,0.00576546]
[1739137148165,3.2078,2600.0,2599.9,0.00576546]
[1739137148561,7.37259196,2600.0,2599.1,2.471]
[1739137148762,7.68019196,2600.0,2599.1,5.6788]
[1739137149069,3.5154,2600.0,2599.1,3.2078]
[1739137149261,3.5154,2600.0,2599.2,2.469]
[1739137149461,3.2078,2599.5,2598.5,1.3098]
[1739137149661,0.3076,2600.0,2598.5,1.3098]
[1739137149662,3.2078,2599.1,2598.5,1.3098]
[1739137149864,3.2078,2599.1,2598.3,22.607]
[1739137150060,3.2078,2599.1,2598.7,0.00576546]
[1739137150670,3.2078,2598.8,2598.7,0.00576546]
[1739137150970,7.66037374,2598.8,2597.3,8.123]
[1739137151160,3.2078,2598.6,2597.5,3.2078]
[1739137151362,3.2078,2599.0,2598.1,3.2078]
[1739137151561,3.2078,2598.4,2597.8,3.2078]
[1739137151757,12.11800434,2598.5,2597.6,5.05490073]
[1739137151963,1.2538,2598.4,2597.5,3.2078]
[1739137152272,5.59674871,2598.4,2597.5,3.2078]
[1739137152571,1.25956546,2598.4,2597.5,3.2078]
[1739137152968,0.00576546,2598.4,2597.8,3.2078]
[1739137153164,3.2078,2598.2,2597.3,8.123]
[1739137153360,3.2078,2597.5,2596.6,3.2078]
[1739137153560,4.4576306,2597.7,2596.6,3.2078]
[1739137153762,3.2078,2597.0,2596.3,17.97801323]
[1739137153967,3.2078,2597.1,2596.3,3.24577861]
[1739137154167,5.38985997,2597.6,2596.3,3.24577861]
[1739137154168,3.2078,2597.2,2596.3,3.24577861]
[1739137154469,3.2078,2596.8,2596.3,0.03797861]
[1739137154774,3.2078,2596.9,2596.3,0.03797861]
[1739137155073,0.00576546,2597.0,2596.4,3.2078]
[1739137155266,3.2078,2596.9,2596.3,0.03797861]
[1739137155463,7.28217403,2596.9,2596.3,0.03797861]
[1739137155670,3.2078,2596.9,2596.3,0.03797861]
[1739137155871,0.00576546,2597.0,2596.3,0.03797861]
[1739137156373,0.00576546,2597.0,2596.3,2.56897861]
[1739137157073,0.00576546,2597.0,2596.4,3.2078]
[1739137157669,3.2078,2596.7,2596.1,3.2078]
[1739137158265,3.21356546,2597.0,2596.1,3.2078]
[1739137158580,0.00576546,2597.0,2596.4,3.2078]
[1739137158980,3.2078,2596.7,2596.1,3.2078]
[1739137160976,3.2078,2596.4,2595.8,7.2058]
[1739137161177,4.06481474,2596.6,2595.8,7.2058]
[1739137161579,3.2078,2596.7,2595.8,7.2058]
[1739137161769,3.2078,2596.1,2595.8,3.998]
[1739137162271,3.2078,2596.4,2595.8,3.998]
[1739137162469,11.92146019,2596.9,2595.8,7.2058]
[1739137162678,3.2078,2596.9,2596.1,3.2078]
[1739137162876,3.2078,2596.6,2595.9,4.4576306]
[1739137163182,3.2078,2596.6,2595.8,7.2058]
[1739137163183,3.2078,2596.5,2596.2,2.512]
[1739137163475,3.2078,2596.3,2596.0,2.517]
[1739137163676,3.2078,2596.2,2596.0,2.517]
[1739137163890,3.2078,2596.2,2595.8,5.2457]
[1739137164177,3.2078,2596.2,2595.9,2.532]
[1739137164369,3.2078,2596.8,2595.9,2.532]
[1739137165382,3.2078,2596.5,2595.9,2.532]
[1739137166377,3.2078,2596.8,2595.8,8.4535]
[1739137166577,3.2078,2596.8,2595.9,2.515]
[1739137167176,4.7481,2596.8,2596.0,3.2078]
[1739137168279,3.2078,2596.5,2596.0,3.2078]
[1739137168474,3.2078,2596.2,2595.8,3.998]
[1739137168970,3.2078,2596.5,2595.8,3.998]
[1739137169170,3.2078,2596.5,2595.9,3.2078]
[1739137169375,0.3081,2596.5,2595.9,3.2078]
[1739137169984,0.6162,2596.5,2595.9,3.2078]
[1739137170182,0.6162,2596.5,2596.3,3.2078]
[1739137170386,0.6162,2596.5,2596.4,2.51]
[1739137170783,0.6162,2596.5,2596.3,2.507]
[1739137171782,0.6162,2596.5,2596.3,16.1724306]
[1739137171983,0.6162,2596.5,2596.4,4.89385122]
[1739137172179,0.6162,2596.5,2596.4,2.508]
[1739137173291,0.6162,2596.5,2596.4,5.7118]
[1739137173785,0.6162,2596.5,2596.4,11.7118]
[1739137174187,0.6162,2596.5,2596.4,12.48198]
[1739137174687,0.6162,2596.5,2596.4,17.4362021]
[1739137174984,0.00576546,2597.0,2596.4,14.1620221]
[1739137175189,0.00576546,2597.0,2596.9,3.2078]
[1739137175389,1.54596546,2597.0,2596.9,3.2078]
[1739137175590,1.54596546,2597.0,2596.9,9.97783]
[1739137175991,3.2078,2598.8,2596.9,14.1597627]
[1739137176183,3.2078,2598.2,2597.7,3.2078]
[1739137176384,3.2078,2597.9,2597.8,2.499]
[1739137176788,3.4822,2597.9,2597.8,2.499]
[1739137177090,3.4822,2597.9,2597.0,21.5214]
[1739137177295,3.4822,2597.5,2597.1,2.495]
[1739137177487,3.4822,2597.5,2597.2,0.00577667]
[1739137177988,0.2744,2597.4,2597.2,0.00577667]
[1739137178294,0.2744,2597.3,2597.2,0.00577667]
[1739137178989,3.2078,2597.5,2597.2,0.00577667]
[1739137179191,0.2744,2597.3,2597.2,0.00577667]
[1739137179793,0.2744,2597.3,2596.3,3.2078]
[1739137179794,0.2744,2597.3,2596.5,2.483]
[1739137180095,0.2744,2596.6,2596.5,2.483]
[1739137180595,0.19071705,2596.9,2596.5,2.483]
[1739137180894,0.2744,2596.6,2596.4,2.474]
[1739137181087,0.2744,2596.4,2596.0,23.3718]
[1739137181287,0.2744,2596.4,2596.1,2.475]
[1739137182185,0.19071705,2596.3,2596.1,2.475]
[1739137182992,0.19071705,2596.3,2596.0,23.3718]
[1739137183289,0.2744,2596.1,2596.0,20.164]
[1739137183490,0.19071705,2596.2,2596.0,20.164]
[1739137183897,0.2744,2596.1,2596.0,20.164]
[1739137184194,0.46511705,2596.1,2596.0,20.164]
[1739137184385,0.19071705,2596.1,2596.0,20.164]
[1739137184588,0.19071705,2596.1,2596.0,26.93429]
[1739137184798,0.19071705,2596.1,2596.0,31.3919206]
[1739137184985,0.00577667,2596.8,2596.0,35.60682603]
[1739137185190,0.2744,2596.7,2596.3,3.2078]
[1739137185392,0.2744,2596.6,2596.3,3.2078]
[1739137185593,0.2744,2596.4,2596.2,2.462]
[1739137185889,0.2744,2596.3,2596.2,2.462]
[1739137188199,0.2744,2596.3,2596.0,20.164]
[1739137188494,0.2744,2596.1,2595.8,3.998]
[1739137188794,0.2744,2596.1,2594.7,3.7322]
[1739137188795,3.97823,2595.6,2594.6,0.00840491]
[1739137188989,3.2078,2594.7,2594.6,0.00840491]
[1739137192195,7.46799191,2594.7,2593.6,2.488]
[1739137192394,3.2078,2594.7,2593.6,4.5056]
[1739137192799,3.2078,2594.7,2593.7,8.20529145]
[1739137193189,4.4576306,2595.3,2593.7,8.20529145]
[1739137193391,0.00577667,2595.4,2594.4,3.2078]
[1739137193698,0.00577667,2595.4,2594.5,9.43870372]
[1739137193993,0.00577667,2595.4,2594.8,3.2078]
[1739137194195,0.00577667,2595.4,2594.5,19.07793432]
[1739137194400,0.00577667,2595.4,2594.9,8.3179083]
[1739137194601,0.00577667,2595.4,2594.9,3.2078]
[1739137195107,0.00577667,2595.4,2594.8,3.2078]
[1739137195500,0.00577667,2595.4,2595.1,3.2078]
[1739137195797,0.00577667,2595.4,2595.2,2.503]
[1739137196003,0.00577667,2595.4,2595.2,7.517366]
[1739137196301,3.2078,2595.9,2595.3,3.2078]
[1739137196503,8.62924545,2596.2,2595.6,3.2078]
[1739137196699,1.5408,2595.9,2595.4,11.42752181]
[1739137197003,8.62924545,2596.2,2595.8,3.2078]
[1739137197299,8.62924545,2596.2,2595.9,27.62608803]
[1739137197496,10.05810457,2596.4,2595.9,33.62608803]
[1739137197497,0.00577667,2596.3,2595.9,33.62608803]
[1739137197800,0.00577667,2596.3,2596.1,3.2078]
[1739137198303,0.00577667,2596.3,2596.1,9.2078]
[1739137198604,0.00577667,2596.3,2596.2,4.90542303]
[1739137199101,0.00577667,2596.3,2596.2,10.90542303]
[1739137199603,0.00577667,2596.3,2596.2,2.481]
[1739137200398,0.00577667,2596.3,2596.2,5.6888]
[1739137200598,0.00577667,2596.3,2596.2,8.481]
[1739137200793,0.00577667,2596.3,2596.2,5.6888]
[1739137201103,0.00577667,2596.3,2596.2,2.481]
[1739137201298,3.21357667,2596.3,2596.2,0.05703176]
[1739137202607,3.24497667,2596.3,2596.2,0.05703176]
[1739137203112,0.03717667,2596.3,2596.2,0.05703176]
[1739137203402,1.5404,2596.7,2596.2,13.72246236]
[1739137203599,10.05810457,2597.5,2596.6,4.4576306]
[1739137203902,10.05810457,2597.5,2597.2,3.97772]
[1739137204097,10.05810457,2597.5,2597.4,0.76988]
[1739137204298,10.05810457,2597.5,2597.4,6.99066236]
[1739137204506,10.05810457,2597.5,2597.4,18.72013117]
[1739137204800,8.81706368,2597.5,2597.4,0.05703176]
[1739137205300,8.81706368,2597.5,2597.2,0.00577667]
[1739137205597,3.2078,2597.3,2597.2,0.00577667]
[1739137206604,5.1828,2597.6,2597.2,0.00577667]
[1739137206800,7.6654306,2597.3,2596.3,20.17]
[1739137206999,7.6654306,2597.3,2596.1,2.477]
[1739137207000,3.2078,2596.5,2596.1,2.477]
[1739137207203,3.2078,2596.2,2595.6,2.51691673]
[1739137207801,3.2078,2596.2,2595.7,2.474]
[1739137208003,3.2078,2595.9,2595.6,0.03791673]
[1739137208304,3.2078,2595.9,2595.6,0.0436934]
[1739137208611,3.2078,2595.9,2595.6,0.00577667]
[1739137209202,3.2078,2595.9,2594.7,1.9885]
[1739137209203,3.2078,2595.9,2594.4,0.3856]
[1739137209405,3.2078,2595.9,2594.1,0.00633164]